[Event "December 19 Late 2023"]
[Site "https://www.chess.com"]
[Date "2023.12.19"]
[Round "1"]
[White "Tifferet, Shakked"]
[Black "Demina, Marya"]
[Result "1/2-1/2"]
[Board "157"]
[TimeControl "180+1"]
[WhiteFideId "2811529"]
[BlackFideId "4195671"]
[WhiteElo "2142"]
[BlackElo "1978"]
[WhiteTeam "ISR"]
[BlackTeam "RUS"]
[WhiteClock "0:00:10"]
[BlackClock "0:00:11"]

1. e4 {[%clk 0:02:51]}  c6 {[%clk 0:02:59]} 2. Nc3 {[%clk 0:02:50]}  d5 {[%clk 0:03:00]} 3. Nf3 {[%clk 0:02:50]}  dxe4 {[%clk 0:03:00]} 4. Nxe4 {[%clk 0:02:51]}  Nf6 {[%clk 0:03:01]} 5. Qe2 {[%clk 0:02:51]}  Nxe4 {[%clk 0:03:00]} 6. Qxe4 {[%clk 0:02:52]}  Qd5 {[%clk 0:02:59]} 7. Qxd5 {[%clk 0:02:49]}  cxd5 {[%clk 0:02:59]} 8. d4 {[%clk 0:02:48]}  Nc6 {[%clk 0:02:57]} 9. c3 {[%clk 0:02:46]}  Bf5 {[%clk 0:02:53]} 10. Bb5 {[%clk 0:02:42]}  Rc8 {[%clk 0:02:52]} 11. Ne5 {[%clk 0:02:40]}  a6 {[%clk 0:02:42]} 12. Ba4 {[%clk 0:02:37]}  b5 {[%clk 0:02:41]} 13. Nxc6 {[%clk 0:02:27]}  Rxc6 {[%clk 0:02:40]} 14. Bb3 {[%clk 0:02:27]}  e6 {[%clk 0:02:38]} 15. a4 {[%clk 0:02:21]}  b4 {[%clk 0:02:36]} 16. a5 {[%clk 0:02:21]}  Kd8 {[%clk 0:02:32]} 17. Ba4 {[%clk 0:02:16]}  Rc8 {[%clk 0:02:28]} 18. cxb4 {[%clk 0:01:59]}  Bxb4+ {[%clk 0:02:28]} 19. Bd2 {[%clk 0:02:00]}  Rc4 {[%clk 0:02:15]} 20. Bxb4 {[%clk 0:01:22]}  Rxb4 {[%clk 0:02:14]} 21. O-O {[%clk 0:01:21]}  Rxb2 {[%clk 0:01:39]} 22. Rfc1 {[%clk 0:01:17]}  Ke7 {[%clk 0:01:17]} 23. Rc6 {[%clk 0:01:13]}  Bd3 {[%clk 0:01:14]} 24. g4 {[%clk 0:01:04]}  Kf6 {[%clk 0:01:13]} 25. h4 {[%clk 0:01:00]}  h6 {[%clk 0:01:11]} 26. Rc7 {[%clk 0:00:48]}  g5 {[%clk 0:01:11]} 27. h5 {[%clk 0:00:47]}  Rhb8 {[%clk 0:01:05]} 28. Kg2 {[%clk 0:00:27]}  Rd2 {[%clk 0:00:54]} 29. Rd1 {[%clk 0:00:14]}  Be4+ {[%clk 0:00:37]} 30. Kg3 {[%clk 0:00:14]}  Ra2 {[%clk 0:00:36]} 31. f3 {[%clk 0:00:11]}  Ra3 {[%clk 0:00:30]} 32. Rf1 {[%clk 0:00:11]}  Bd3 {[%clk 0:00:28]} 33. Rd1 {[%clk 0:00:07]}  Bb1 {[%clk 0:00:21]} 34. Bd7 {[%clk 0:00:03]}  Rbb3 {[%clk 0:00:18]} 35. Rf1 {[%clk 0:00:03]}  Be4 {[%clk 0:00:17]} 36. Be8 {[%clk 0:00:03]}  Rxf3+ {[%clk 0:00:17]} 37. Rxf3+ {[%clk 0:00:03]}  Rxf3+ {[%clk 0:00:17]} 38. Kh2 {[%clk 0:00:04]}  Kg7 {[%clk 0:00:18]} 39. Bd7 {[%clk 0:00:03]}  Kg8 {[%clk 0:00:10]} 40. Rc8+ {[%clk 0:00:02]}  Kg7 {[%clk 0:00:10]} 41. Bc6 {[%clk 0:00:03]}  Bd3 {[%clk 0:00:09]} 42. Rc7 {[%clk 0:00:03]}  Rf4 {[%clk 0:00:09]} 43. Kg3 {[%clk 0:00:02]}  Rxd4 {[%clk 0:00:09]} 44. Bb7 {[%clk 0:00:02]}  Rf4 {[%clk 0:00:09]} 45. Bc8 {[%clk 0:00:03]}  Kf6 {[%clk 0:00:08]} 46. Bb7 {[%clk 0:00:03]}  Ke5 {[%clk 0:00:09]} 47. Rc6 {[%clk 0:00:04]}  f5 {[%clk 0:00:09]} 48. gxf5 {[%clk 0:00:03]}  Kxf5 {[%clk 0:00:08]} 49. Bc8 {[%clk 0:00:03]}  Rg4+ {[%clk 0:00:07]} 50. Kf2 {[%clk 0:00:03]}  Re4 {[%clk 0:00:07]} 51. Bxa6 {[%clk 0:00:01]}  Bxa6 {[%clk 0:00:07]} 52. Rxa6 {[%clk 0:00:02]}  Ra4 {[%clk 0:00:07]} 53. Ra8 {[%clk 0:00:03]}  Kg4 {[%clk 0:00:07]} 54. a6 {[%clk 0:00:03]}  Kxh5 {[%clk 0:00:07]} 55. Ra7 {[%clk 0:00:03]}  e5 {[%clk 0:00:07]} 56. Kg3 {[%clk 0:00:03]}  d4 {[%clk 0:00:07]} 57. Re7 {[%clk 0:00:02]}  Rxa6 {[%clk 0:00:07]} 58. Rxe5 {[%clk 0:00:02]}  Ra3+ {[%clk 0:00:07]} 59. Kf2 {[%clk 0:00:03]}  Kg4 {[%clk 0:00:07]} 60. Re4+ {[%clk 0:00:02]}  Kf5 {[%clk 0:00:06]} 61. Rxd4 {[%clk 0:00:03]}  h5 {[%clk 0:00:07]} 62. Rd5+ {[%clk 0:00:04]}  Kg6 {[%clk 0:00:07]} 63. Rd6+ {[%clk 0:00:04]}  Kf5 {[%clk 0:00:08]} 64. Rd5+ {[%clk 0:00:05]}  Kf4 {[%clk 0:00:08]} 65. Rd4+ {[%clk 0:00:05]}  Ke5 {[%clk 0:00:08]} 66. Rb4 {[%clk 0:00:05]}  h4 {[%clk 0:00:07]} 67. Rb5+ {[%clk 0:00:05]}  Kf4 {[%clk 0:00:07]} 68. Rb4+ {[%clk 0:00:05]}  Kf5 {[%clk 0:00:08]} 69. Rb5+ {[%clk 0:00:05]}  Kg4 {[%clk 0:00:08]} 70. Rb4+ {[%clk 0:00:05]}  Kh5 {[%clk 0:00:08]} 71. Rb5 {[%clk 0:00:04]}  Rc3 {[%clk 0:00:08]} 72. Kg2 {[%clk 0:00:03]}  Ra3 {[%clk 0:00:07]} 73. Rc5 {[%clk 0:00:03]}  Ra4 {[%clk 0:00:08]} 74. Rb5 {[%clk 0:00:03]}  Kg4 {[%clk 0:00:07]} 75. Rb2 {[%clk 0:00:02]}  h3+ {[%clk 0:00:06]} 76. Kh2 {[%clk 0:00:03]}  Kh4 {[%clk 0:00:06]} 77. Rb8 {[%clk 0:00:02]}  Ra2+ {[%clk 0:00:06]} 78. Kh1 {[%clk 0:00:02]}  g4 {[%clk 0:00:06]} 79. Rb3 {[%clk 0:00:02]}  Rc2 {[%clk 0:00:05]} 80. Rb1 {[%clk 0:00:01]}  Kg3 {[%clk 0:00:05]} 81. Rb3+ {[%clk 0:00:01]}  Kf4 {[%clk 0:00:04]} 82. Rb1 {[%clk 0:00:02]}  Kf3 {[%clk 0:00:05]} 83. Rb3+ {[%clk 0:00:02]}  Kf2 {[%clk 0:00:04]} 84. Rb1 {[%clk 0:00:03]}  g3 {[%clk 0:00:04]} 85. Rf1+ {[%clk 0:00:03]}  Ke3 {[%clk 0:00:05]} 86. Re1+ {[%clk 0:00:03]}  Kf4 {[%clk 0:00:05]} 87. Rf1+ {[%clk 0:00:03]}  Kg4 {[%clk 0:00:05]} 88. Rd1 {[%clk 0:00:03]}  Rf2 {[%clk 0:00:05]} 89. Rd4+ {[%clk 0:00:04]}  Rf4 {[%clk 0:00:06]} 90. Rd1 {[%clk 0:00:04]}  Kf3 {[%clk 0:00:06]} 91. Rf1+ {[%clk 0:00:04]}  Kg4 {[%clk 0:00:06]} 92. Rd1 {[%clk 0:00:04]}  g2+ {[%clk 0:00:06]} 93. Kh2 {[%clk 0:00:04]}  Rf1 {[%clk 0:00:07]} 94. Rd4+ {[%clk 0:00:04]}  Kf3 {[%clk 0:00:07]} 95. Rd3+ {[%clk 0:00:04]}  Ke2 {[%clk 0:00:07]} 96. Rg3 {[%clk 0:00:03]}  g1=Q+ {[%clk 0:00:05]} 97. Rxg1 {[%clk 0:00:03]}  Rxg1 {[%clk 0:00:06]} 98. Kxg1 {[%clk 0:00:04]}  Kf3 {[%clk 0:00:06]} 99. Kh2 {[%clk 0:00:04]}  Kg4 {[%clk 0:00:06]} 100. Kh1 {[%clk 0:00:05]}  Kg3 {[%clk 0:00:07]} 101. Kg1 {[%clk 0:00:06]}  Kf3 {[%clk 0:00:07]} 102. Kh1 {[%clk 0:00:07]}  Kg4 {[%clk 0:00:08]} 103. Kh2 {[%clk 0:00:07]}  Kh4 {[%clk 0:00:09]} 104. Kh1 {[%clk 0:00:08]}  Kg3 {[%clk 0:00:10]} 105. Kg1 {[%clk 0:00:09]}  h2+ {[%clk 0:00:10]} 106. Kh1 {[%clk 0:00:10]}  Kh3 {[%clk 0:00:11]} 1/2-1/2

[Event "December 19 Late 2023"]
[Site "https://www.chess.com"]
[Date "2023.12.19"]
[Round "1"]
[White "Rose, Felix"]
[Black "Bold, Andre"]
[Result "0-1"]
[Board "158"]
[TimeControl "180+1"]
[WhiteFideId "5105722"]
[BlackFideId "16208471"]
[WhiteElo "2039"]
[BlackElo "2110"]
[WhiteTeam "MEX"]
[BlackTeam "GER"]
[WhiteClock "0:01:08"]
[BlackClock "0:00:30"]

1. e4 {[%clk 0:02:59]}  c6 {[%clk 0:03:00]} 2. d4 {[%clk 0:02:59]}  d5 {[%clk 0:03:00]} 3. e5 {[%clk 0:03:00]}  Bf5 {[%clk 0:03:00]} 4. h4 {[%clk 0:03:00]}  h5 {[%clk 0:03:00]} 5. Bd3 {[%clk 0:03:00]}  Bxd3 {[%clk 0:03:01]} 6. Qxd3 {[%clk 0:03:00]}  Qa5+ {[%clk 0:03:01]} 7. Bd2 {[%clk 0:02:59]}  Qa6 {[%clk 0:03:01]} 8. e6 {[%clk 0:03:00]}  Qxd3 {[%clk 0:02:55]} 9. cxd3 {[%clk 0:03:00]}  fxe6 {[%clk 0:02:50]} 10. Nf3 {[%clk 0:03:00]}  Nd7 {[%clk 0:02:34]} 11. O-O {[%clk 0:02:52]}  e5 {[%clk 0:02:11]} 12. dxe5 {[%clk 0:02:52]}  Nc5 {[%clk 0:02:04]} 13. d4 {[%clk 0:02:43]}  Ne4 {[%clk 0:01:59]} 14. Bb4 {[%clk 0:02:35]}  b6 {[%clk 0:01:50]} 15. Nc3 {[%clk 0:02:31]}  Nxc3 {[%clk 0:01:44]} 16. bxc3 {[%clk 0:02:27]}  Rc8 {[%clk 0:01:42]} 17. a4 {[%clk 0:02:12]}  c5 {[%clk 0:01:41]} 18. Ba3 {[%clk 0:02:12]}  e6 {[%clk 0:01:39]} 19. a5 {[%clk 0:02:04]}  b5 {[%clk 0:01:38]} 20. a6 {[%clk 0:01:58]}  b4 {[%clk 0:01:34]} 21. cxb4 {[%clk 0:01:58]}  cxb4 {[%clk 0:01:32]} 22. Rac1 {[%clk 0:01:56]}  Rc4 {[%clk 0:01:25]} 23. Bb2 {[%clk 0:01:52]}  Nh6 {[%clk 0:01:25]} 24. Ng5 {[%clk 0:01:50]}  Kd7 {[%clk 0:01:24]} 25. f4 {[%clk 0:01:49]}  Nf5 {[%clk 0:01:21]} 26. Nf3 {[%clk 0:01:49]}  Be7 {[%clk 0:01:16]} 27. Rxc4 {[%clk 0:01:42]}  dxc4 {[%clk 0:01:16]} 28. d5 {[%clk 0:01:43]}  exd5 {[%clk 0:01:09]} 29. Rd1 {[%clk 0:01:40]}  Ke6 {[%clk 0:01:08]} 30. Bd4 {[%clk 0:01:38]}  Rc8 {[%clk 0:01:04]} 31. Bxa7 {[%clk 0:01:38]}  Ra8 {[%clk 0:01:04]} 32. Bf2 {[%clk 0:01:33]}  Rxa6 {[%clk 0:01:04]} 33. g3 {[%clk 0:01:33]}  b3 {[%clk 0:01:03]} 34. Rb1 {[%clk 0:01:31]}  Ra8 {[%clk 0:00:57]} 35. Kf1 {[%clk 0:01:30]}  Rb8 {[%clk 0:00:54]} 36. Be1 {[%clk 0:01:28]}  d4 {[%clk 0:00:51]} 37. Bf2 {[%clk 0:01:25]}  Kd5 {[%clk 0:00:50]} 38. Ke2 {[%clk 0:01:14]}  d3+ {[%clk 0:00:43]} 39. Kd1 {[%clk 0:01:13]}  c3 {[%clk 0:00:39]} 40. Ke1 {[%clk 0:01:11]}  b2 {[%clk 0:00:37]} 41. Rd1 {[%clk 0:01:11]}  b1=Q {[%clk 0:00:34]} 42. Nd2 {[%clk 0:01:08]}  Qxd1+ {[%clk 0:00:33]} 43. Kxd1 {[%clk 0:01:09]}  c2+ {[%clk 0:00:33]} 44. Kc1 {[%clk 0:01:08]}  Ba3# {[%clk 0:00:30]} 0-1

[Event "December 19 Late 2023"]
[Site "https://www.chess.com"]
[Date "2023.12.19"]
[Round "1"]
[White "Khater, Sherif"]
[Black "Guzman Lozano, Campo Elias"]
[Result "1-0"]
[Board "159"]
[TimeControl "180+1"]
[WhiteFideId "2034280"]
[BlackFideId "4403746"]
[WhiteElo "2551"]
[BlackElo "2099"]
[WhiteTeam "USA"]
[BlackTeam "COL"]
[WhiteClock "0:00:21"]
[BlackClock "0:00:40"]

1. a3 {[%clk 0:03:00]}  d5 {[%clk 0:02:59]} 2. b4 {[%clk 0:02:59]}  e5 {[%clk 0:02:59]} 3. Bb2 {[%clk 0:02:57]}  f6 {[%clk 0:02:58]} 4. e3 {[%clk 0:02:57]}  Nh6 {[%clk 0:02:56]} 5. c4 {[%clk 0:02:53]}  Be6 {[%clk 0:02:55]} 6. cxd5 {[%clk 0:02:53]}  Bxd5 {[%clk 0:02:55]} 7. Nf3 {[%clk 0:02:53]}  Be7 {[%clk 0:02:50]} 8. Nc3 {[%clk 0:02:53]}  Bf7 {[%clk 0:02:48]} 9. d4 {[%clk 0:02:50]}  exd4 {[%clk 0:02:47]} 10. Nxd4 {[%clk 0:02:46]}  O-O {[%clk 0:02:46]} 11. Bd3 {[%clk 0:02:45]}  c5 {[%clk 0:02:45]} 12. bxc5 {[%clk 0:02:41]}  Bxc5 {[%clk 0:02:44]} 13. Ne4 {[%clk 0:02:38]}  Bxd4 {[%clk 0:02:43]} 14. Bxd4 {[%clk 0:02:36]}  Nc6 {[%clk 0:02:43]} 15. Bc3 {[%clk 0:02:31]}  Rc8 {[%clk 0:02:41]} 16. O-O {[%clk 0:02:20]}  Ne5 {[%clk 0:02:41]} 17. Bxe5 {[%clk 0:02:11]}  fxe5 {[%clk 0:02:40]} 18. Nd6 {[%clk 0:02:01]}  Rc7 {[%clk 0:02:35]} 19. Nxf7 {[%clk 0:02:01]}  Nxf7 {[%clk 0:02:31]} 20. Be4 {[%clk 0:01:58]}  Rd7 {[%clk 0:02:30]} 21. Qb3 {[%clk 0:01:50]}  Kh8 {[%clk 0:02:29]} 22. Rad1 {[%clk 0:01:49]}  Ng5 {[%clk 0:02:13]} 23. Rxd7 {[%clk 0:01:46]}  Qxd7 {[%clk 0:02:13]} 24. Qxb7 {[%clk 0:01:44]}  Qa4 {[%clk 0:02:10]} 25. Qe7 {[%clk 0:01:36]}  Re8 {[%clk 0:02:06]} 26. Qxg5 {[%clk 0:01:36]}  Qxe4 {[%clk 0:02:06]} 27. Qh5 {[%clk 0:01:24]}  Rb8 {[%clk 0:02:00]} 28. Qf3 {[%clk 0:01:19]}  Qc4 {[%clk 0:01:52]} 29. Qf5 {[%clk 0:01:16]}  Qc5 {[%clk 0:01:50]} 30. h3 {[%clk 0:01:15]}  h6 {[%clk 0:01:48]} 31. a4 {[%clk 0:01:10]}  Qa5 {[%clk 0:01:47]} 32. f4 {[%clk 0:01:05]}  Qxa4 {[%clk 0:01:37]} 33. Qxe5 {[%clk 0:01:05]}  Re8 {[%clk 0:01:33]} 34. Qc5 {[%clk 0:00:56]}  Qe4 {[%clk 0:01:22]} 35. Qxa7 {[%clk 0:00:49]}  Qxe3+ {[%clk 0:01:21]} 36. Qxe3 {[%clk 0:00:50]}  Rxe3 {[%clk 0:01:21]} 37. Kh2 {[%clk 0:00:46]}  Kh7 {[%clk 0:01:20]} 38. Ra1 {[%clk 0:00:44]}  Re7 {[%clk 0:01:19]} 39. Ra3 {[%clk 0:00:43]}  Rc7 {[%clk 0:01:19]} 40. g4 {[%clk 0:00:43]}  Rd7 {[%clk 0:01:18]} 41. Kg3 {[%clk 0:00:43]}  Rc7 {[%clk 0:01:18]} 42. Rf3 {[%clk 0:00:42]}  Rb7 {[%clk 0:01:15]} 43. f5 {[%clk 0:00:42]}  Rb6 {[%clk 0:01:11]} 44. Kh4 {[%clk 0:00:42]}  Ra6 {[%clk 0:01:08]} 45. Kh5 {[%clk 0:00:42]}  Rb6 {[%clk 0:01:08]} 46. Ra3 {[%clk 0:00:41]}  Rb7 {[%clk 0:01:07]} 47. h4 {[%clk 0:00:40]}  Rc7 {[%clk 0:01:07]} 48. Ra5 {[%clk 0:00:37]}  Rb7 {[%clk 0:01:05]} 49. g5 {[%clk 0:00:36]}  hxg5 {[%clk 0:01:04]} 50. hxg5 {[%clk 0:00:37]}  Rb8 {[%clk 0:00:53]} 51. Ra7 {[%clk 0:00:23]}  Rb1 {[%clk 0:00:40]} 52. g6+ {[%clk 0:00:21]} 1-0

[Event "December 19 Late 2023"]
[Site "https://www.chess.com"]
[Date "2023.12.19"]
[Round "1"]
[White "Kopczynski, Michal"]
[Black "Hartikainen, Jarmo"]
[Result "1-0"]
[Board "165"]
[TimeControl "180+1"]
[WhiteFideId "1124200"]
[BlackFideId "503134"]
[WhiteElo "2174"]
[BlackElo "2155"]
[WhiteTeam "POL"]
[BlackTeam "FIN"]
[WhiteClock "0:00:48"]
[BlackClock "0:00:22"]

1. e4 {[%clk 0:03:00]}  c5 {[%clk 0:02:59]} 2. d4 {[%clk 0:03:00]}  cxd4 {[%clk 0:02:59]} 3. c3 {[%clk 0:02:58]}  d5 {[%clk 0:02:59]} 4. exd5 {[%clk 0:02:58]}  Qxd5 {[%clk 0:02:59]} 5. cxd4 {[%clk 0:02:58]}  Nc6 {[%clk 0:02:59]} 6. Nf3 {[%clk 0:02:58]}  Bg4 {[%clk 0:02:59]} 7. Be2 {[%clk 0:02:58]}  e6 {[%clk 0:02:59]} 8. Nc3 {[%clk 0:02:59]}  Qa5 {[%clk 0:02:59]} 9. O-O {[%clk 0:02:57]}  Nf6 {[%clk 0:02:59]} 10. Qb3 {[%clk 0:02:56]}  Qb4 {[%clk 0:02:59]} 11. Qxb4 {[%clk 0:02:51]}  Bxb4 {[%clk 0:02:55]} 12. Be3 {[%clk 0:02:50]}  O-O {[%clk 0:02:53]} 13. Rac1 {[%clk 0:02:49]}  Rfd8 {[%clk 0:02:51]} 14. Rfd1 {[%clk 0:02:48]}  Rac8 {[%clk 0:02:47]} 15. h3 {[%clk 0:02:48]}  Bh5 {[%clk 0:02:40]} 16. g4 {[%clk 0:02:46]}  Bg6 {[%clk 0:02:40]} 17. Ne5 {[%clk 0:02:45]}  Nxe5 {[%clk 0:02:32]} 18. dxe5 {[%clk 0:02:46]}  Rxd1+ {[%clk 0:02:15]} 19. Bxd1 {[%clk 0:02:34]}  Nd5 {[%clk 0:01:52]} 20. Nxd5 {[%clk 0:02:19]}  Rxc1 {[%clk 0:01:51]} 21. Bxc1 {[%clk 0:02:20]}  exd5 {[%clk 0:01:51]} 22. Be3 {[%clk 0:02:20]}  b6 {[%clk 0:01:48]} 23. Bf3 {[%clk 0:02:11]}  Be4 {[%clk 0:01:48]} 24. Bxe4 {[%clk 0:02:09]}  dxe4 {[%clk 0:01:48]} 25. Kg2 {[%clk 0:02:07]}  h6 {[%clk 0:01:41]} 26. Kg3 {[%clk 0:01:52]}  g5 {[%clk 0:01:41]} 27. h4 {[%clk 0:01:53]}  Be7 {[%clk 0:01:39]} 28. hxg5 {[%clk 0:01:44]}  hxg5 {[%clk 0:01:39]} 29. f3 {[%clk 0:01:35]}  Kg7 {[%clk 0:01:37]} 30. fxe4 {[%clk 0:01:34]}  Kg6 {[%clk 0:01:34]} 31. Kf3 {[%clk 0:01:33]}  Kg7 {[%clk 0:00:49]} 32. Ke2 {[%clk 0:01:29]}  Kf8 {[%clk 0:00:49]} 33. Kd3 {[%clk 0:01:29]}  Ke8 {[%clk 0:00:50]} 34. Kc4 {[%clk 0:01:30]}  Kd7 {[%clk 0:00:48]} 35. Kd5 {[%clk 0:01:12]}  Bd8 {[%clk 0:00:37]} 36. b4 {[%clk 0:01:09]}  a6 {[%clk 0:00:32]} 37. a4 {[%clk 0:01:08]}  a5 {[%clk 0:00:28]} 38. b5 {[%clk 0:00:57]}  Kc7 {[%clk 0:00:27]} 39. e6 {[%clk 0:00:54]}  fxe6+ {[%clk 0:00:27]} 40. Kxe6 {[%clk 0:00:55]}  Kc8 {[%clk 0:00:26]} 41. Kf5 {[%clk 0:00:51]}  Kd7 {[%clk 0:00:24]} 42. Bxg5 {[%clk 0:00:51]}  Bc7 {[%clk 0:00:25]} 43. Bf4 {[%clk 0:00:48]}  Bd8 {[%clk 0:00:25]} 44. Be3 {[%clk 0:00:48]}  Ke7 {[%clk 0:00:24]} 45. Bg5+ {[%clk 0:00:47]}  Kf7 {[%clk 0:00:22]} 46. Bxd8 {[%clk 0:00:48]} 1-0

[Event "December 19 Late 2023"]
[Site "https://www.chess.com"]
[Date "2023.12.19"]
[Round "1"]
[White "Quirke, Jeffrey"]
[Black "Lin, Bryan Enming"]
[Result "0-1"]
[Board "166"]
[TimeControl "180+1"]
[WhiteFideId "2013029"]
[BlackFideId "30987121"]
[WhiteElo "2153"]
[BlackElo "2543"]
[WhiteTeam "USA"]
[BlackTeam "USA"]
[WhiteClock "0:00:43"]
[BlackClock "0:00:56"]

1. e4 {[%clk 0:03:00]}  e5 {[%clk 0:02:59]} 2. Nf3 {[%clk 0:02:59]}  Nc6 {[%clk 0:02:57]} 3. d3 {[%clk 0:03:00]}  Nf6 {[%clk 0:02:55]} 4. c3 {[%clk 0:02:59]}  d5 {[%clk 0:02:55]} 5. Nbd2 {[%clk 0:02:58]}  Bc5 {[%clk 0:02:54]} 6. b4 {[%clk 0:02:55]}  Bb6 {[%clk 0:02:54]} 7. Be2 {[%clk 0:02:52]}  a6 {[%clk 0:02:52]} 8. O-O {[%clk 0:02:51]}  O-O {[%clk 0:02:51]} 9. a4 {[%clk 0:02:50]}  Re8 {[%clk 0:02:50]} 10. a5 {[%clk 0:02:50]}  Ba7 {[%clk 0:02:48]} 11. h3 {[%clk 0:02:46]}  g6 {[%clk 0:02:19]} 12. Bb2 {[%clk 0:02:46]}  Nh5 {[%clk 0:02:19]} 13. Re1 {[%clk 0:02:43]}  Nf4 {[%clk 0:02:19]} 14. Bf1 {[%clk 0:02:42]}  dxe4 {[%clk 0:02:11]} 15. dxe4 {[%clk 0:02:35]}  Nd3 {[%clk 0:02:07]} 16. Bxd3 {[%clk 0:02:32]}  Qxd3 {[%clk 0:02:08]} 17. Qe2 {[%clk 0:02:23]}  Qxe2 {[%clk 0:02:05]} 18. Rxe2 {[%clk 0:02:24]}  Be6 {[%clk 0:02:05]} 19. Nf1 {[%clk 0:02:13]}  Bc4 {[%clk 0:02:02]} 20. Rd2 {[%clk 0:02:11]}  Rad8 {[%clk 0:01:58]} 21. Rad1 {[%clk 0:02:11]}  f6 {[%clk 0:01:48]} 22. Rxd8 {[%clk 0:02:00]}  Nxd8 {[%clk 0:01:49]} 23. Rd7 {[%clk 0:01:54]}  Ne6 {[%clk 0:01:46]} 24. N3d2 {[%clk 0:01:49]}  Bb5 {[%clk 0:01:44]} 25. Rd5 {[%clk 0:01:35]}  Bc6 {[%clk 0:01:37]} 26. c4 {[%clk 0:01:35]}  Bxd5 {[%clk 0:01:36]} 27. exd5 {[%clk 0:01:32]}  Bd4 {[%clk 0:01:34]} 28. Ba3 {[%clk 0:01:23]}  Nf4 {[%clk 0:01:31]} 29. Ne4 {[%clk 0:01:20]}  Kf7 {[%clk 0:01:24]} 30. Ne3 {[%clk 0:01:17]}  Rd8 {[%clk 0:01:11]} 31. Kh2 {[%clk 0:01:12]}  Nd3 {[%clk 0:01:06]} 32. g4 {[%clk 0:00:53]}  Nxf2 {[%clk 0:01:03]} 33. Nxf2 {[%clk 0:00:47]}  Bxe3 {[%clk 0:01:03]} 34. Ne4 {[%clk 0:00:47]}  f5 {[%clk 0:01:01]} 35. gxf5 {[%clk 0:00:47]}  gxf5 {[%clk 0:01:02]} 36. Ng3 {[%clk 0:00:43]}  Bf4 {[%clk 0:00:56]} 0-1

[Event "December 19 Late 2023"]
[Site "https://www.chess.com"]
[Date "2023.12.19"]
[Round "1"]
[White "O`Gorman, Tom"]
[Black "Clarke, Adani"]
[Result "1-0"]
[Board "169"]
[TimeControl "180+1"]
[WhiteFideId "2508249"]
[BlackFideId "7402082"]
[WhiteElo "2288"]
[BlackElo "1691"]
[WhiteTeam "IRL"]
[BlackTeam "JAM"]
[WhiteClock "0:01:59"]
[BlackClock "0:01:53"]

1. b3 {[%clk 0:02:59]}  Nf6 {[%clk 0:02:58]} 2. Bb2 {[%clk 0:02:59]}  e6 {[%clk 0:02:58]} 3. g3 {[%clk 0:02:58]}  d5 {[%clk 0:02:59]} 4. Bg2 {[%clk 0:02:58]}  Be7 {[%clk 0:02:59]} 5. Nf3 {[%clk 0:02:58]}  O-O {[%clk 0:02:59]} 6. O-O {[%clk 0:02:59]}  c5 {[%clk 0:02:58]} 7. d3 {[%clk 0:02:59]}  Nc6 {[%clk 0:02:57]} 8. Nbd2 {[%clk 0:02:59]}  b6 {[%clk 0:02:57]} 9. e4 {[%clk 0:03:00]}  Bb7 {[%clk 0:02:57]} 10. Re1 {[%clk 0:02:58]}  dxe4 {[%clk 0:02:55]} 11. dxe4 {[%clk 0:02:58]}  Qc7 {[%clk 0:02:53]} 12. e5 {[%clk 0:02:45]}  Nd7 {[%clk 0:02:47]} 13. Qe2 {[%clk 0:02:43]}  Rad8 {[%clk 0:02:43]} 14. Rad1 {[%clk 0:02:40]}  Ndb8 {[%clk 0:02:42]} 15. h4 {[%clk 0:02:37]}  Nb4 {[%clk 0:02:41]} 16. Ne4 {[%clk 0:02:31]}  Ba6 {[%clk 0:02:34]} 17. c4 {[%clk 0:02:28]}  Nxa2 {[%clk 0:02:31]} 18. Nf6+ {[%clk 0:02:14]}  Kh8 {[%clk 0:02:24]} 19. Ng5 {[%clk 0:02:13]}  Rxd1 {[%clk 0:02:16]} 20. Rxd1 {[%clk 0:02:12]}  g6 {[%clk 0:02:13]} 21. Ngxh7 {[%clk 0:02:04]}  Rd8 {[%clk 0:02:09]} 22. Ng5 {[%clk 0:02:04]}  Kg7 {[%clk 0:02:04]} 23. h5 {[%clk 0:02:00]}  Rxd1+ {[%clk 0:02:01]} 24. Qxd1 {[%clk 0:02:01]}  Qd8 {[%clk 0:01:58]} 25. h6+ {[%clk 0:02:00]}  Kf8 {[%clk 0:01:53]} 26. Ngh7# {[%clk 0:01:59]} 1-0

[Event "December 19 Late 2023"]
[Site "https://www.chess.com"]
[Date "2023.12.19"]
[Round "1"]
[White "Bhandari, Krish"]
[Black "Silva, Kaua Marques"]
[Result "0-1"]
[Board "170"]
[TimeControl "180+1"]
[WhiteFideId "30955106"]
[BlackFideId "22701168"]
[WhiteElo "1959"]
[BlackElo "2199"]
[WhiteTeam "USA"]
[BlackTeam "BRA"]
[WhiteClock "0:01:43"]
[BlackClock "0:01:54"]

1. d4 {[%clk 0:02:59]}  c5 {[%clk 0:02:42]} 2. d5 {[%clk 0:02:56]}  e6 {[%clk 0:02:41]} 3. c4 {[%clk 0:02:56]}  exd5 {[%clk 0:02:42]} 4. cxd5 {[%clk 0:02:57]}  d6 {[%clk 0:02:39]} 5. Nc3 {[%clk 0:02:56]}  g6 {[%clk 0:02:35]} 6. e4 {[%clk 0:02:43]}  Bg7 {[%clk 0:02:36]} 7. Bd3 {[%clk 0:02:41]}  Nf6 {[%clk 0:02:35]} 8. Nf3 {[%clk 0:02:40]}  O-O {[%clk 0:02:34]} 9. O-O {[%clk 0:02:39]}  Re8 {[%clk 0:02:33]} 10. Nd2 {[%clk 0:02:37]}  Nbd7 {[%clk 0:02:23]} 11. f4 {[%clk 0:02:33]}  a6 {[%clk 0:02:23]} 12. a4 {[%clk 0:02:32]}  Nf8 {[%clk 0:02:22]} 13. Nc4 {[%clk 0:02:25]}  Rb8 {[%clk 0:02:21]} 14. a5 {[%clk 0:02:24]}  Ng4 {[%clk 0:02:16]} 15. Qf3 {[%clk 0:02:09]}  Qh4 {[%clk 0:01:55]} 16. Ne2 {[%clk 0:01:43]}  Qxh2# {[%clk 0:01:54]} 0-1

[Event "December 19 Late 2023"]
[Site "https://www.chess.com"]
[Date "2023.12.19"]
[Round "1"]
[White "Saim, Mohamed Ilias"]
[Black "Tan, Ralph"]
[Result "1-0"]
[Board "172"]
[TimeControl "180+1"]
[WhiteFideId "7900465"]
[BlackFideId "30966590"]
[WhiteElo "2063"]
[BlackElo "2099"]
[WhiteTeam "ALG"]
[BlackTeam "USA"]
[WhiteClock "0:00:16"]
[BlackClock "0:00:11"]

1. d4 {[%clk 0:02:59]}  Nf6 {[%clk 0:02:59]} 2. Bg5 {[%clk 0:02:58]}  Ne4 {[%clk 0:02:59]} 3. Bf4 {[%clk 0:02:58]}  d5 {[%clk 0:03:00]} 4. f3 {[%clk 0:02:58]}  Nf6 {[%clk 0:03:00]} 5. e4 {[%clk 0:02:58]}  dxe4 {[%clk 0:02:59]} 6. Nc3 {[%clk 0:02:59]}  exf3 {[%clk 0:02:53]} 7. Nxf3 {[%clk 0:03:00]}  Bg4 {[%clk 0:02:52]} 8. h3 {[%clk 0:03:00]}  Bxf3 {[%clk 0:02:47]} 9. Qxf3 {[%clk 0:03:01]}  c6 {[%clk 0:02:47]} 10. O-O-O {[%clk 0:03:01]}  e6 {[%clk 0:02:46]} 11. Bc4 {[%clk 0:02:58]}  Nbd7 {[%clk 0:02:45]} 12. d5 {[%clk 0:02:54]}  cxd5 {[%clk 0:02:44]} 13. Bxd5 {[%clk 0:02:50]}  Qb6 {[%clk 0:01:57]} 14. Bxb7 {[%clk 0:02:36]}  Rd8 {[%clk 0:01:57]} 15. Bg5 {[%clk 0:01:53]}  Be7 {[%clk 0:01:55]} 16. Bc6 {[%clk 0:01:53]}  Qc5 {[%clk 0:00:57]} 17. Bxf6 {[%clk 0:01:40]}  gxf6 {[%clk 0:00:57]} 18. Rxd7 {[%clk 0:01:33]}  Rxd7 {[%clk 0:00:56]} 19. Rd1 {[%clk 0:01:32]}  O-O {[%clk 0:00:46]} 20. Rxd7 {[%clk 0:01:20]}  f5 {[%clk 0:00:42]} 21. g4 {[%clk 0:00:57]}  Bg5+ {[%clk 0:00:42]} 22. Kb1 {[%clk 0:00:55]}  f4 {[%clk 0:00:30]} 23. Ne4 {[%clk 0:00:44]}  Qa5 {[%clk 0:00:30]} 24. Nxg5 {[%clk 0:00:39]}  Qxg5 {[%clk 0:00:31]} 25. a3 {[%clk 0:00:36]}  Rb8 {[%clk 0:00:29]} 26. Rb7 {[%clk 0:00:35]}  Rd8 {[%clk 0:00:28]} 27. Rd7 {[%clk 0:00:34]}  Rb8 {[%clk 0:00:27]} 28. Bb7 {[%clk 0:00:33]}  Qb5 {[%clk 0:00:25]} 29. Qc6 {[%clk 0:00:29]}  Qf1+ {[%clk 0:00:24]} 30. Ka2 {[%clk 0:00:29]}  Qc1 {[%clk 0:00:21]} 31. Qc7 {[%clk 0:00:28]}  Rf8 {[%clk 0:00:20]} 32. Be4 {[%clk 0:00:26]}  Qe3 {[%clk 0:00:20]} 33. Qe5 {[%clk 0:00:24]}  Qb6 {[%clk 0:00:17]} 34. Qg5+ {[%clk 0:00:21]}  Kh8 {[%clk 0:00:17]} 35. Qh6 {[%clk 0:00:17]}  f5 {[%clk 0:00:11]} 36. Qxf8# {[%clk 0:00:16]} 1-0